bitfinex/quotes_BTCUSD_20250602
["timestamp","ask_amount","ask_price","bid_price","bid_amount"]
[1748830048864,0.24929814,105330.0,105320.0,0.04724679]
[1748830049075,0.24929814,105330.0,105320.0,0.04724684]
[1748830049282,0.24929814,105330.0,105320.0,0.05674171]
[1748830049489,0.24929814,105330.0,105320.0,0.05673946]
[1748830049719,0.24929814,105330.0,105320.0,0.0537019]
[1748830049942,0.24929814,105330.0,105320.0,0.04784446]
[1748830050138,0.24929814,105330.0,105320.0,0.05673954]
[1748830050139,0.34081814,105330.0,105320.0,0.05673954]
[1748830050342,0.32754027,105330.0,105320.0,0.03834959]
[1748830050753,0.32754027,105330.0,105320.0,0.04724342]
[1748830050966,0.66754027,105330.0,105320.0,0.03834959]
[1748830051404,0.66754027,105330.0,105320.0,0.04420599]
[1748830052034,0.66754027,105330.0,105320.0,0.04724389]
[1748830052246,0.66754027,105330.0,105320.0,0.04420599]
[1748830052917,0.66754027,105330.0,105320.0,0.23713814]
[1748830053135,0.68652794,105330.0,105320.0,0.25612752]
[1748830053379,0.68652794,105330.0,105320.0,0.24359502]
[1748830054212,0.68652794,105330.0,105320.0,0.25308971]
[1748830054432,0.68652794,105330.0,105320.0,0.25308821]
[1748830054674,0.59500794,105330.0,105320.0,0.24419875]
[1748830054882,0.68652794,105330.0,105320.0,0.25308821]
[1748830055095,0.59500794,105330.0,105320.0,0.25308821]
[1748830055304,0.68656794,105330.0,105320.0,0.25308821]
[1748830055710,0.68656794,105330.0,105320.0,0.253088]
[1748830056352,0.68656794,105330.0,105320.0,0.24419875]
[1748830056556,0.68656794,105330.0,105320.0,0.25308676]
[1748830056970,0.68656794,105330.0,105320.0,0.24359207]
[1748830058213,0.68656794,105330.0,105320.0,0.23470406]
[1748830058451,0.68656794,105330.0,105320.0,0.03531183]
[1748830058634,0.68656794,105330.0,105320.0,0.04419893]
[1748830059886,0.68656794,105330.0,105320.0,0.04419845]
[1748830060930,0.68656794,105330.0,105320.0,0.03531183]
[1748830061351,0.68656794,105330.0,105320.0,0.0441981]
[1748830062220,0.68656794,105330.0,105320.0,0.03531183]
[1748830062410,0.68656794,105330.0,105320.0,0.0441981]
[1748830062616,0.68656794,105330.0,105320.0,0.04419786]
[1748830063899,0.68656794,105330.0,105320.0,0.04419765]
[1748830064310,0.68656794,105330.0,105320.0,0.04419764]
[1748830065557,0.68656794,105330.0,105320.0,0.04419765]
[1748830066426,0.68656794,105330.0,105320.0,0.03531183]
[1748830066630,0.68656794,105330.0,105320.0,0.04419765]
[1748830067543,0.68656794,105330.0,105320.0,0.03531183]
[1748830068442,0.68656794,105330.0,105320.0,0.0441979]
[1748830069140,0.77907916,105330.0,105320.0,0.0441979]
[1748830069362,0.77907916,105330.0,105320.0,0.03531183]
[1748830071151,0.68656794,105330.0,105320.0,0.03531183]
[1748830072170,0.78242224,105330.0,105320.0,0.03531183]
[1748830077443,0.78242224,105330.0,105320.0,0.03279183]
[1748830082068,1.07490224,105330.0,105320.0,0.03279183]
[1748830082287,1.07498224,105330.0,105320.0,0.03279183]
[1748830083361,0.60430852,105330.0,105320.0,0.03279183]
[1748830083571,0.98834852,105330.0,105320.0,0.03279183]
[1748830084582,1.17671404,105330.0,105320.0,0.03279183]
[1748830089841,1.08420282,105330.0,105320.0,0.03279183]
[1748830094171,4.65348582,105330.0,105320.0,0.03279183]
[1748830094507,4.72363882,105330.0,105320.0,0.03279183]
[1748830096107,4.72364124,105330.0,105320.0,0.03279183]
[1748830096316,0.54890639,105310.0,105300.0,0.00014534]
[1748830096528,0.65524639,105310.0,105300.0,0.00014534]
[1748830097158,0.66978724,105310.0,105300.0,0.00014534]
[1748830097806,0.67078724,105310.0,105300.0,0.00414534]
[1748830098619,0.66978724,105310.0,105300.0,0.00414534]
[1748830099094,0.66978724,105310.0,105300.0,0.00014534]
[1748830099300,0.97882724,105310.0,105300.0,0.00014534]
[1748830099501,1.07133846,105310.0,105300.0,0.00214534]
[1748830100030,1.07133846,105310.0,105300.0,0.00414534]
[1748830100473,0.97882724,105310.0,105300.0,0.00414534]
[1748830101691,0.9979587,105310.0,105300.0,0.00414534]
[1748830102252,1.093813,105310.0,105300.0,0.00414534]
[1748830103235,0.710333,105310.0,105300.0,0.00414534]
[1748830103419,1.093653,105310.0,105300.0,0.00414534]
[1748830103635,1.077453,105310.0,105300.0,0.00414534]
[1748830104089,1.092753,105310.0,105300.0,0.00414534]
[1748830104647,1.18526422,105310.0,105300.0,0.00414534]
[1748830105050,1.092753,105310.0,105300.0,0.00414534]
[1748830108344,1.093553,105310.0,105300.0,0.00414534]
[1748830109425,4.662876,105310.0,105300.0,0.00414534]
[1748830110903,0.19943001,105300.0,105290.0,0.0158978]
[1748830111168,0.34182516,105300.0,105290.0,0.0158978]
[1748830111353,0.34182516,105300.0,105290.0,0.01638307]
[1748830112228,0.43433638,105300.0,105290.0,0.01638307]
[1748830112855,0.43533638,105300.0,105290.0,0.01638307]
[1748830113062,0.34282516,105300.0,105290.0,0.01638307]
[1748830113281,0.32672516,105300.0,105290.0,0.01638307]
[1748830113494,0.34262516,105300.0,105290.0,0.01638307]
[1748830114522,0.71120516,105300.0,105290.0,0.01638307]
[1748830119200,0.71096516,105300.0,105290.0,0.01638307]
[1748830119800,0.59917086,105300.0,105290.0,0.01638307]
[1748830120006,0.59917086,105300.0,105290.0,0.03268307]
[1748830120917,0.70738208,105300.0,105290.0,0.01638307]
[1748830121488,0.81833638,105300.0,105290.0,0.01638307]
[1748830122464,4.73259626,105300.0,105290.0,0.01638307]
[1748830122664,4.73315626,105300.0,105290.0,0.01638307]
[1748830123209,4.73215626,105300.0,105290.0,0.01638307]
[1748830123415,4.73415626,105300.0,105290.0,0.01638307]
[1748830123731,4.73615626,105300.0,105290.0,0.01638307]
[1748830124478,5.13624504,105300.0,105290.0,0.01638307]
[1748830124638,5.13636504,105300.0,105290.0,0.01638307]
[1748830127568,4.75148504,105300.0,105290.0,0.01638307]
[1748830127772,5.13616504,105300.0,105290.0,0.01638307]
[1748830127995,5.13628504,105300.0,105290.0,0.01638307]
[1748830128210,5.22879626,105300.0,105290.0,0.01638307]
[1748830129827,4.75148504,105300.0,105290.0,0.01638307]
[1748830130036,1.15136204,105300.0,105290.0,0.01638307]
[1748830130237,1.53612204,105300.0,105290.0,0.01638307]
[1748830130748,1.15136204,105300.0,105290.0,0.03198307]
[1748830130948,1.44022774,105300.0,105290.0,0.04768307]
[1748830131161,1.14650774,105300.0,105290.0,0.04768307]
[1748830131568,0.61152977,105300.0,105290.0,0.2566295]
[1748830131791,0.61152977,105300.0,105290.0,0.26550995]
[1748830131792,0.31342272,105300.0,105290.0,0.26550995]
[1748830131990,0.30392659,105300.0,105290.0,0.05656352]
[1748830132215,0.64392659,105300.0,105290.0,0.04768307]
[1748830132435,0.56746744,105300.0,105290.0,0.05656302]
[1748830132668,0.65846744,105300.0,105290.0,0.25601197]
[1748830132880,0.65846744,105300.0,105290.0,0.25601196]
[1748830133265,0.64392659,105300.0,105290.0,0.25662932]
[1748830133589,0.65846744,105300.0,105290.0,0.25601241]
[1748830133712,0.64392659,105300.0,105290.0,0.25601241]
[1748830133915,0.65846744,105300.0,105290.0,0.24713202]
[1748830134116,0.65846744,105300.0,105290.0,0.25601316]
[1748830134713,0.65846744,105300.0,105290.0,0.26551046]
[1748830135337,0.65846744,105300.0,105290.0,0.27500767]
[1748830135538,0.65846744,105300.0,105290.0,0.26551049]
[1748830135757,0.65846744,105300.0,105290.0,0.25601319]
[1748830135960,0.65846744,105300.0,105290.0,0.25601314]
[1748830136368,0.65846744,105300.0,105290.0,0.26551044]
[1748830136998,0.65846744,105300.0,105290.0,0.27500765]
[1748830137633,0.65846744,105300.0,105290.0,0.26551021]
[1748830138222,0.65846744,105300.0,105290.0,0.25662932]
[1748830138430,0.56746744,105300.0,105290.0,0.24713202]
[1748830138580,0.38198479,105300.0,105290.0,0.3613642]
[1748830138789,0.57191822,105300.0,105290.0,0.3613642]
[1748830138995,0.57191903,105300.0,105290.0,0.37086098]
[1748830139190,0.57191903,105300.0,105290.0,0.35186661]
[1748830139536,0.56242299,105300.0,105290.0,0.35186484]
[1748830139762,0.55842299,105300.0,105290.0,0.35186484]
[1748830139943,0.55842299,105300.0,105290.0,0.37085935]
[1748830141063,0.55842299,105300.0,105290.0,0.38035647]
[1748830141497,0.55842299,105300.0,105290.0,0.37147795]
[1748830141674,0.55842299,105300.0,105290.0,0.38035512]
[1748830142666,0.55842299,105300.0,105290.0,0.38035353]
[1748830143499,0.55842299,105300.0,105290.0,0.38985056]
[1748830143733,0.36848884,105300.0,105290.0,0.38984865]
[1748830144052,0.36848893,105300.0,105290.0,0.38740865]
[1748830144427,0.36848884,105300.0,105290.0,0.38740865]
[1748830144733,0.38748209,105300.0,105290.0,0.37791042]
[1748830144942,0.38748209,105300.0,105290.0,0.38740736]
[1748830145240,0.36848884,105300.0,105290.0,0.38740736]
[1748830145795,0.37798551,105300.0,105290.0,0.37853453]
[1748830145992,0.37798551,105300.0,105290.0,0.38740693]
[1748830146689,0.55842236,105300.0,105290.0,0.35891596]
[1748830146959,0.55842236,105300.0,105290.0,0.36841317]
[1748830147155,0.55842236,105300.0,105290.0,0.36841265]
[1748830147399,0.55842236,105300.0,105290.0,0.36841267]
[1748830147604,0.54892632,105300.0,105290.0,0.35891546]
[1748830147843,0.54892632,105300.0,105290.0,0.34941816]
[1748830148023,0.54892632,105300.0,105290.0,0.36841276]
[1748830148461,0.54892632,105300.0,105290.0,0.36841244]
[1748830148623,0.53943001,105300.0,105290.0,0.35891525]
[1748830149025,0.54447437,105300.0,105290.0,0.02281443]
[1748830149224,0.54447437,105300.0,105290.0,0.02281407]
[1748830149427,0.57477437,105300.0,105290.0,0.01394307]
[1748830151450,0.57677437,105300.0,105290.0,0.01394307]
[1748830152054,0.57877437,105300.0,105290.0,0.01394307]
[1748830153970,0.665181,105300.0,105290.0,0.01394307]
[1748830154606,0.65403437,105300.0,105290.0,0.01394307]
[1748830155139,0.67023437,105300.0,105290.0,0.01394307]
[1748830156769,0.65403437,105300.0,105290.0,0.01394307]
[1748830158004,4.33541167,105300.0,105290.0,0.01394307]
[1748830158208,4.34035455,105300.0,105290.0,0.01394307]
[1748830158565,4.43286577,105300.0,105290.0,0.01394307]
[1748830161930,4.34035455,105300.0,105290.0,0.01394307]
[1748830165762,4.37366876,105300.0,105290.0,0.01394307]
[1748830166005,4.37222676,105300.0,105290.0,0.01394307]
[1748830166439,4.34035455,105300.0,105290.0,0.01394307]
[1748830166648,4.40553851,105300.0,105290.0,0.01394307]
[1748830166852,0.22352663,105270.0,105260.0,0.0321]
[1748830167053,0.22352663,105270.0,105260.0,0.0409777]
[1748830167694,0.22352663,105270.0,105260.0,0.04097608]
[1748830168104,0.22352663,105270.0,105260.0,0.04697608]
[1748830168314,0.22452663,105270.0,105260.0,0.04697608]
[1748830169395,0.56452663,105270.0,105260.0,0.0223]
[1748830169600,0.56452663,105270.0,105260.0,0.03117437]
[1748830169830,0.56452663,105270.0,105260.0,0.04757438]
[1748830170209,0.56452663,105270.0,105260.0,0.0475744]
[1748830171020,0.56452663,105270.0,105260.0,0.04757342]
[1748830171633,0.56452663,105270.0,105260.0,0.04757304]
[1748830172145,0.56452663,105270.0,105260.0,0.0387]
[1748830172367,0.56452663,105270.0,105260.0,0.04757304]
[1748830172714,0.56452663,105270.0,105260.0,0.0387]
[1748830172925,0.56452663,105270.0,105260.0,0.04757309]
[1748830173488,0.56452663,105270.0,105260.0,0.04757348]
[1748830174736,0.56452663,105270.0,105260.0,0.0387]
[1748830174921,0.56452663,105270.0,105260.0,0.04757437]
[1748830176283,0.57412791,105270.0,105260.0,0.04757437]
[1748830176699,0.57412791,105270.0,105260.0,0.05645488]
[1748830176911,0.57412791,105270.0,105260.0,0.04757744]
[1748830177292,0.57412791,105270.0,105260.0,0.0387]
[1748830177521,0.57412791,105270.0,105260.0,0.04757748]
[1748830177727,0.57412791,105270.0,105260.0,0.05645706]
[1748830178958,0.57412791,105270.0,105260.0,0.05645951]
[1748830180186,0.57412791,105270.0,105260.0,0.05646076]
[1748830180619,0.57412791,105270.0,105260.0,0.04757748]
[1748830180833,0.57412791,105270.0,105260.0,0.05646084]
[1748830181534,0.57412791,105270.0,105260.0,0.04757748]
[1748830181736,0.57412791,105270.0,105260.0,0.05646181]
[1748830182998,0.57412791,105270.0,105260.0,0.05646303]
[1748830183382,0.57412791,105270.0,105260.0,0.0564632]
[1748830184024,0.57412791,105270.0,105260.0,0.05646319]
[1748830184183,0.57412791,105270.0,105260.0,0.05646318]
[1748830184387,0.57412791,105270.0,105260.0,0.05646488]
[1748830185576,0.57412791,105270.0,105260.0,0.23758318]
[1748830185813,0.57412791,105270.0,105260.0,0.25597279]
[1748830186283,0.39363955,105270.0,105260.0,0.27497254]
[1748830186495,0.5836272,105270.0,105260.0,0.27497272]
[1748830186938,0.5836272,105270.0,105260.0,0.99860088]
[1748830186939,0.01060128,105270.0,105260.0,0.99860088]
[1748830187146,0.02959887,105270.0,105260.0,0.68112618]
[1748830187345,0.03909798,105270.0,105260.0,0.68112618]
[1748830187568,0.03909798,105270.0,105260.0,0.68113158]
[1748830188013,0.04859718,105270.0,105260.0,0.38337158]
[1748830188244,0.04859781,105270.0,105260.0,0.37387193]
[1748830188458,0.04859781,105270.0,105260.0,0.38337153]
[1748830189817,0.04859781,105270.0,105260.0,0.38337202]
[1748830190048,0.04859781,105270.0,105260.0,0.38033251]
[1748830190312,0.04859781,105270.0,105260.0,0.38337197]
[1748830190515,0.04859781,105270.0,105260.0,0.38337236]
[1748830190925,0.04859781,105270.0,105260.0,0.37447671]
[1748830191133,0.04859781,105270.0,105260.0,0.38337236]
[1748830191546,0.04859781,105270.0,105260.0,0.38337271]
[1748830191966,0.23858546,105270.0,105260.0,0.37387306]
[1748830192167,0.23858546,105270.0,105260.0,0.3833728]
[1748830192381,0.23858546,105270.0,105260.0,0.38337268]
[1748830192589,0.23858546,105270.0,105260.0,0.3744768]
[1748830192820,0.23858546,105270.0,105260.0,0.38337316]
[1748830193031,0.24808484,105270.0,105260.0,0.38337316]
[1748830193398,0.23858591,105270.0,105260.0,0.38337316]
[1748830193603,0.23858591,105270.0,105260.0,0.3744768]
[1748830193803,0.23412845,105270.0,105260.0,0.0431131]
[1748830194192,0.23412845,105270.0,105260.0,0.04311321]
[1748830194418,0.23412845,105270.0,105260.0,0.04311343]
[1748830196299,0.23412845,105270.0,105260.0,0.04311366]
[1748830197595,0.23412845,105270.0,105260.0,0.03421698]
[1748830197807,0.23412845,105270.0,105260.0,0.04311366]
[1748830198883,0.23412845,105270.0,105260.0,0.04311363]
[1748830199300,0.23412845,105270.0,105260.0,0.03421702]
[1748830199561,0.23412845,105270.0,105260.0,0.04311357]
[1748830199701,0.23412845,105270.0,105260.0,0.03421702]
[1748830199907,0.23412845,105270.0,105260.0,0.04311357]
[1748830200854,0.25002845,105270.0,105260.0,0.02681357]
[1748830201233,0.25002845,105270.0,105260.0,0.02681353]
[1748830201593,0.25002845,105270.0,105260.0,0.02681348]
[1748830202943,0.25002845,105270.0,105260.0,0.02681353]
[1748830203156,0.34330845,105270.0,105260.0,0.02681353]
[1748830203573,0.34330845,105270.0,105260.0,0.0268136]
[1748830204006,0.32740845,105270.0,105260.0,0.0418136]
[1748830204691,0.32740845,105270.0,105260.0,0.04181369]
[1748830205647,0.32740845,105270.0,105260.0,0.04181366]
[1748830206266,0.32740845,105270.0,105260.0,0.04181379]
[1748830206675,0.32740845,105270.0,105260.0,0.05131422]
[1748830206887,0.0441408,105270.0,105260.0,0.25691992]
[1748830207097,0.04414044,105270.0,105260.0,0.27591985]
[1748830207310,0.23412809,105270.0,105260.0,0.27591974]
[1748830207864,0.23412809,105270.0,105260.0,0.27591983]
[1748830208760,0.23412809,105270.0,105260.0,0.27592039]
[1748830208973,0.23412809,105270.0,105260.0,0.26702293]
[1748830209177,0.23412809,105270.0,105260.0,0.27592039]
[1748830209393,0.23412809,105270.0,105260.0,0.28542054]
[1748830209601,0.04414044,105270.0,105260.0,0.29492019]
[1748830209817,0.05363982,105270.0,105260.0,0.29492019]
[1748830210252,0.04414044,105270.0,105260.0,0.29492032]
[1748830210440,0.24362747,105270.0,105260.0,0.28542066]
[1748830210686,0.24362747,105270.0,105260.0,0.2949204]
[1748830210892,0.05363982,105270.0,105260.0,0.29492021]
[1748830211631,0.05363982,105270.0,105260.0,0.28602186]
[1748830211841,0.04414044,105270.0,105260.0,0.00889887]
[1748830212044,0.04414044,105270.0,105260.0,0.32325827]
[1748830212045,0.03909825,105270.0,105260.0,0.32325827]
[1748830212251,0.03909825,105270.0,105260.0,0.3143594]
[1748830212456,0.03909825,105270.0,105260.0,0.30485984]
[1748830212896,0.23858528,105270.0,105260.0,0.29536028]
[1748830213102,0.22908653,105270.0,105260.0,0.32386022]
[1748830213304,0.22908653,105270.0,105260.0,0.11485477]
[1748830213511,0.22908653,105270.0,105260.0,0.31436039]
[1748830213720,0.03909888,105270.0,105260.0,0.32386022]
[1748830214353,0.03909888,105270.0,105260.0,0.31436039]
[1748830214754,0.03909888,105270.0,105260.0,0.32386022]
[1748830215051,0.03909888,105270.0,105260.0,0.33966022]
[1748830215517,0.33489825,105270.0,105260.0,0.36425987]
[1748830215742,0.33489825,105270.0,105260.0,0.36425996]
[1748830216159,0.02010003,105270.0,105260.0,0.36425996]
[1748830216374,0.02959896,105270.0,105260.0,0.36425933]
[1748830216800,0.03909807,105270.0,105260.0,0.36425933]
[1748830217211,0.02959896,105270.0,105260.0,0.36425933]
[1748830217451,0.04859736,105270.0,105260.0,0.35475968]
[1748830217670,0.03909807,105270.0,105260.0,0.36425933]
[1748830217884,0.04859727,105270.0,105260.0,0.34915933]
[1748830219523,0.04859736,105270.0,105260.0,0.34915933]
[1748830219735,0.34403736,105270.0,105260.0,0.34915933]
[1748830219946,0.34403736,105270.0,105260.0,0.33965968]
[1748830220163,0.33453807,105270.0,105260.0,0.33965968]
[1748830220385,0.03909807,105270.0,105260.0,0.34915933]
[1748830220662,0.03909807,105270.0,105260.0,0.36565933]
[1748830221117,0.04859727,105270.0,105260.0,0.36565933]
[1748830222508,0.03909807,105270.0,105260.0,0.36565933]
[1748830223804,0.03909807,105270.0,105260.0,0.37760178]
[1748830224013,0.35673522,105270.0,105260.0,0.37760178]
[1748830224219,0.36623451,105270.0,105260.0,0.36810213]
[1748830224445,0.35673522,105270.0,105260.0,0.37760178]
[1748830224648,0.36623442,105270.0,105260.0,0.36810213]
[1748830224893,0.37573371,105270.0,105260.0,0.34910256]
[1748830225104,0.34723647,105270.0,105260.0,0.31680243]
[1748830225305,0.8807572,105270.0,105260.0,0.32630244]
[1748830225511,0.37308408,105270.0,105260.0,0.33580218]
[1748830225751,0.37308408,105270.0,105260.0,0.3447051]
[1748830225958,0.37308408,105270.0,105260.0,0.33580225]
[1748830226162,0.37308408,105270.0,105260.0,0.34530199]
[1748830226569,0.37308408,105270.0,105260.0,0.33580219]
[1748830226776,0.38258346,105270.0,105260.0,0.33580219]
[1748830227284,0.38256385,105270.0,105260.0,0.33580219]
[1748830227531,0.38256385,105270.0,105260.0,0.32689942]
[1748830227739,0.38256385,105270.0,105260.0,0.3358022]
[1748830228169,0.38256385,105270.0,105260.0,0.31680245]
[1748830228387,0.5725515,105270.0,105260.0,0.32630237]
[1748830228598,0.5725515,105270.0,105260.0,0.32630234]
[1748830229012,0.88071843,105270.0,105260.0,0.30730243]
[1748830229224,0.88071843,105270.0,105260.0,0.31680253]
[1748830229433,0.56305257,105270.0,105260.0,0.32630256]
[1748830229653,0.56305257,105270.0,105260.0,0.33580248]
[1748830230075,0.37306447,105270.0,105260.0,0.34530231]
[1748830230283,0.56305212,105270.0,105260.0,0.32630256]
[1748830230694,0.56305212,105270.0,105260.0,0.3268997]
[1748830230920,0.56305212,105270.0,105260.0,0.33580249]
[1748830231415,0.56305212,105270.0,105260.0,0.33580247]
[1748830232047,0.56305212,105270.0,105260.0,0.3453023]
[1748830232253,0.56305212,105270.0,105260.0,0.33580251]
[1748830232694,0.56305212,105270.0,105260.0,0.32630259]
[1748830233107,0.55345084,105270.0,105260.0,0.32630259]
[1748830233386,0.36346301,105270.0,105260.0,0.33580251]
[1748830233600,0.37296239,105270.0,105260.0,0.33580219]
[1748830233826,0.56295004,105270.0,105260.0,0.31680245]
[1748830234740,0.36346301,105270.0,105260.0,0.32630237]
[1748830234962,0.36346301,105270.0,105260.0,0.34530194]
[1748830235185,0.36346301,105270.0,105260.0,0.345302]
[1748830235402,0.3729623,105270.0,105260.0,0.33580226]
[1748830235622,0.3729623,105270.0,105260.0,0.32689934]
[1748830235845,0.3729623,105270.0,105260.0,0.33580234]
[1748830236181,0.3729623,105270.0,105260.0,0.32689934]
[1748830236399,0.57244933,105270.0,105260.0,0.30730258]
[1748830236635,0.57244933,105270.0,105260.0,0.3168027]
[1748830237063,0.37296167,105270.0,105260.0,0.33580245]
[1748830237525,0.37296167,105270.0,105260.0,0.32630263]
[1748830237821,0.37296167,105270.0,105260.0,0.33580246]
[1748830238275,0.37296167,105270.0,105260.0,0.31680271]
[1748830238475,0.37296167,105270.0,105260.0,0.32630267]
[1748830238679,0.37296167,105270.0,105260.0,0.31680275]
[1748830239114,0.35666167,105270.0,105260.0,0.34210258]
[1748830239519,0.34716238,105270.0,105260.0,0.34210258]
[1748830239723,0.35666158,105270.0,105260.0,0.34269916]
[1748830239931,0.35666158,105270.0,105260.0,0.35160238]
[1748830240140,0.35666158,105270.0,105260.0,0.34210264]
[1748830240563,0.35666158,105270.0,105260.0,0.35160238]
[1748830240767,0.35666158,105270.0,105260.0,0.35160245]
[1748830241078,0.34716238,105270.0,105260.0,0.34269916]
[1748830241410,0.34716238,105270.0,105260.0,0.35160253]
[1748830242078,0.34716238,105270.0,105260.0,0.35160254]
[1748830242434,0.34716238,105270.0,105260.0,0.35160265]
[1748830242773,0.34716238,105270.0,105260.0,0.34269916]
[1748830242979,0.34716238,105270.0,105260.0,0.35160265]
[1748830243186,0.34716238,105270.0,105260.0,0.34269916]
[1748830243324,0.34716238,105270.0,105260.0,0.35160265]
[1748830243520,0.35666167,105270.0,105260.0,0.35160265]
[1748830243741,0.34716238,105270.0,105260.0,0.35160265]
[1748830244411,0.33766327,105270.0,105260.0,0.3611023]
[1748830244618,0.33766327,105270.0,105260.0,0.36110245]
[1748830244744,0.001,105270.0,105260.0,0.37700229]
[1748830245550,0.001,105270.0,105260.0,0.39480783]
[1748830245755,0.001,105270.0,105260.0,0.38590505]
[1748830246225,0.001,105270.0,105260.0,0.39480786]
[1748830246612,0.001,105270.0,105260.0,0.42151665]
[1748830247412,0.001,105270.0,105260.0,0.42150624]
[1748830247622,0.001,105270.0,105260.0,0.42150109]
[1748830248600,0.001,105270.0,105260.0,0.42149885]
[1748830249034,0.001,105270.0,105260.0,0.42149437]
[1748830249239,0.001,105270.0,105260.0,0.42149405]
[1748830249441,0.001,105270.0,105260.0,0.40370289]
[1748830249746,0.001,105270.0,105260.0,0.42149363]
[1748830250727,0.001,105270.0,105260.0,0.4214912]
[1748830250921,0.001,105270.0,105260.0,0.42148634]
[1748830251370,0.32816452,105270.0,105260.0,0.42148634]
[1748830251566,0.32816452,105270.0,105260.0,0.40558634]
[1748830251766,0.32816452,105270.0,105260.0,0.40558349]
[1748830252013,0.32816443,105270.0,105260.0,0.40558349]
[1748830252428,0.32816443,105270.0,105260.0,0.39668991]
[1748830252983,0.31866586,105270.0,105260.0,0.4055811]
[1748830253398,0.31860321,105270.0,105260.0,0.4055811]
[1748830254062,0.31860321,105270.0,105260.0,0.40557912]
[1748830254271,0.31860321,105270.0,105260.0,0.38779805]
[1748830254479,0.31860321,105270.0,105260.0,0.40557858]
[1748830254690,0.31860321,105270.0,105260.0,0.41446893]
[1748830254901,0.001,105270.0,105260.0,0.73207136]
[1748830255121,0.001,105270.0,105260.0,0.74757136]
[1748830255332,0.001,105270.0,105260.0,0.42996815]
[1748830255742,0.001,105270.0,105260.0,0.42996687]
[1748830255958,0.001,105270.0,105260.0,0.42996509]
[1748830256419,0.001,105270.0,105260.0,0.42996467]
[1748830256623,0.001,105270.0,105260.0,0.4121868]
[1748830256824,0.001,105270.0,105260.0,0.42996337]
[1748830257650,0.001,105270.0,105260.0,0.429962]
[1748830257870,0.001,105270.0,105260.0,0.42996194]
[1748830257980,0.001,105270.0,105260.0,0.42996192]
[1748830258383,0.001,105270.0,105260.0,0.42996154]
[1748830258823,0.001,105270.0,105260.0,0.42996124]
[1748830259627,0.001,105270.0,105260.0,0.42995987]
[1748830261024,0.001,105270.0,105260.0,0.4299597]
[1748830261226,0.001,105270.0,105260.0,0.42995934]
[1748830261661,0.001,105270.0,105260.0,0.41218498]
[1748830261869,0.001,105270.0,105260.0,0.42995934]
[1748830262434,0.001,105270.0,105260.0,0.42995923]
[1748830262655,0.001,105270.0,105260.0,0.42995917]
[1748830263027,0.001,105270.0,105260.0,0.3877978]
[1748830263223,0.001,105270.0,105260.0,0.43045917]
[1748830263448,0.001,105270.0,105260.0,0.4037978]
[1748830263722,0.001,105270.0,105260.0,0.4304594]
[1748830263929,0.001,105270.0,105260.0,0.4144594]
[1748830264330,0.001,105270.0,105260.0,0.3877978]
[1748830264533,0.001,105270.0,105260.0,0.41445995]
[1748830264960,0.001,105270.0,105260.0,0.41445994]
[1748830265370,0.001,105270.0,105260.0,0.70873994]
[1748830265776,0.001,105270.0,105260.0,0.69293994]
[1748830266043,0.3185513,105270.0,105260.0,0.69294023]
[1748830266402,0.3185513,105270.0,105260.0,0.69294065]
[1748830266608,0.001,105270.0,105260.0,0.69294065]
[1748830266819,0.001,105270.0,105260.0,0.66627779]
[1748830267029,0.001,105270.0,105260.0,0.68405397]
[1748830267234,0.001,105270.0,105260.0,0.69294206]
[1748830267439,0.001,105270.0,105260.0,0.6929426]
[1748830268053,0.001,105270.0,105260.0,0.69294369]
[1748830268803,0.01049857,105270.0,105260.0,0.69294369]
[1748830268996,0.01049857,105270.0,105260.0,0.69294507]
[1748830269207,0.02569857,105270.0,105260.0,0.69294507]
[1748830269612,0.02569857,105270.0,105260.0,0.68405814]
[1748830269821,0.02569857,105270.0,105260.0,0.69294831]
[1748830269945,0.02569857,105270.0,105260.0,0.69294834]
[1748830270145,0.02569857,105270.0,105260.0,0.6929484]
[1748830270463,0.02569857,105270.0,105260.0,0.69295134]
[1748830270828,0.4384924,105270.0,105260.0,0.39867194]
[1748830270962,0.64418131,105270.0,105260.0,0.17005861]
[1748830271166,0.63468238,105270.0,105260.0,0.19734293]
[1748830271369,0.63468238,105270.0,105260.0,0.37967502]
[1748830271571,0.55843744,105270.0,105260.0,0.38028333]
[1748830271892,0.55843744,105270.0,105260.0,0.37967866]
[1748830272101,0.63468238,105270.0,105260.0,0.16117214]
[1748830272265,0.62518327,105270.0,105260.0,0.17067679]
[1748830272465,0.23138703,105270.0,105260.0,0.1623875]
[1748830272669,0.23138703,105270.0,105260.0,0.37078757]
[1748830272873,0.54893833,105270.0,105260.0,0.39747036]
[1748830273267,0.23138703,105270.0,105260.0,0.17896367]
[1748830273480,0.86648963,105270.0,105260.0,0.1611769]
[1748830273695,0.54893833,105270.0,105260.0,0.19675942]
[1748830273926,0.54893833,105270.0,105260.0,0.20565545]
[1748830274126,0.23138703,105270.0,105260.0,0.19736425]
[1748830274330,0.54893833,105270.0,105260.0,0.20625999]
[1748830274538,0.54893833,105270.0,105260.0,0.17007249]
[1748830274739,0.53943895,105270.0,105260.0,0.19676614]
[1748830275182,0.53943895,105270.0,105260.0,0.17897037]
[1748830275388,0.53943895,105270.0,105260.0,0.19676614]
[1748830275608,0.22188765,105270.0,105260.0,0.19676614]
[1748830275816,0.53943895,105270.0,105260.0,0.19676614]
[1748830276450,0.53943895,105270.0,105260.0,0.19675617]
[1748830276661,0.53943895,105270.0,105260.0,0.19675657]
[1748830277067,0.53943895,105270.0,105260.0,0.19371711]
[1748830277296,0.53943895,105270.0,105260.0,0.16703343]
[1748830277501,0.53943895,105270.0,105260.0,0.19371655]
[1748830277844,0.22188765,105270.0,105260.0,0.1937155]
[1748830278053,0.53943895,105270.0,105260.0,0.1937155]
[1748830278618,0.53943895,105270.0,105260.0,0.1937153]
[1748830279243,0.53943895,105270.0,105260.0,0.1937128]
[1748830279544,0.53943895,105270.0,105260.0,0.19371117]
[1748830279764,0.40428168,105270.0,105260.0,0.07117913]
[1748830279970,1.37938428,105270.0,105260.0,0.09785553]
[1748830280422,0.58592779,105270.0,105260.0,0.09785553]
[1748830280625,0.90347909,105270.0,105260.0,0.09785246]
[1748830281033,0.90347909,105270.0,105260.0,0.08006968]
[1748830281233,0.90359704,105270.0,105260.0,0.09785078]
[1748830281716,0.90359704,105270.0,105260.0,0.08006968]
[1748830281916,0.90359704,105270.0,105260.0,0.09784596]
[1748830282122,0.90359704,105270.0,105260.0,0.09784598]
[1748830282322,0.699068,105270.0,105260.0,0.40331676]
[1748830282470,0.72756533,105270.0,105260.0,0.40270505]
[1748830282671,0.71806595,105270.0,105260.0,0.42170453]
[1748830282868,0.72756524,105270.0,105260.0,0.42170462]
[1748830283076,0.72756524,105270.0,105260.0,0.42170236]
[1748830283378,0.71186497,105270.0,105260.0,0.41220262]
[1748830283606,0.71186497,105270.0,105260.0,0.42170109]
[1748830283943,0.71186497,105270.0,105260.0,0.4027007]
[1748830283944,0.89875503,105270.0,105260.0,0.4027007]
[1748830284312,0.89875503,105270.0,105260.0,0.40270079]
[1748830284563,0.89875503,105270.0,105260.0,0.1854208]